[Event "*** Titled Tuesday Blitz"]
[Site "Chess.com"]
[Date "2020.11.03"]
[Round "5"]
[White "Kapibara_Warri0r"]
[Black "Mimsychess"]
[Result "1-0"]
[WhiteElo "2154"]
[BlackElo "2319"]
[TimeControl "180+1"]
[EndTime "10:57:36 PST"]
[Termination "Kapibara_Warri0r won by resignation"]

1. e4 {[%clk 0:02:55.7]} 1... c5 {[%clk 0:02:58.1]} 2. Nf3 {[%clk 0:02:55.6]}
2... e6 {[%clk 0:02:57.8]} 3. d4 {[%clk 0:02:56]} 3... cxd4 {[%clk 0:02:55.8]}
4. Nxd4 {[%clk 0:02:56.9]} 4... Nc6 {[%clk 0:02:54]} 5. Nc3 {[%clk 0:02:52.7]}
5... Qc7 {[%clk 0:02:53.4]} 6. Nxc6 {[%clk 0:02:50.7]} 6... dxc6 {[%clk
0:02:51.1]} 7. Bd3 {[%clk 0:02:50.5]} 7... e5 {[%clk 0:02:47]} 8. O-O {[%clk
0:02:49.6]} 8... Nf6 {[%clk 0:02:44.7]} 9. Kh1 {[%clk 0:02:48]} 9... Be7 {[%clk
0:02:43]} 10. f4 {[%clk 0:02:47.2]} 10... Bg4 {[%clk 0:02:33.4]} 11. Qe1 {[%clk
0:02:41.7]} 11... O-O {[%clk 0:02:15.1]} 12. Qg3 {[%clk 0:02:37.1]} 12... Be6
{[%clk 0:02:05.1]} 13. fxe5 {[%clk 0:02:31.3]} 13... Nh5 {[%clk 0:02:01]} 14.
Qf3 {[%clk 0:02:12.6]} 14... Qxe5 {[%clk 0:01:57.2]} 15. Ne2 {[%clk 0:02:04.6]}
15... g6 {[%clk 0:01:48.4]} 16. Nf4 {[%clk 0:01:46]} 16... Nxf4 {[%clk
0:01:30.5]} 17. Bxf4 {[%clk 0:01:43.2]} 17... Qg7 {[%clk 0:01:28.9]} 18. c3
{[%clk 0:01:40.9]} 18... Rad8 {[%clk 0:01:21.9]} 19. e5 {[%clk 0:01:36.6]} 19...
Bd5 {[%clk 0:01:04.7]} 20. Be4 {[%clk 0:01:35.5]} 20... Bxe4 {[%clk 0:00:56.8]}
21. Qxe4 {[%clk 0:01:36.4]} 21... Rd5 {[%clk 0:00:56.7]} 22. c4 {[%clk
0:01:22.9]} 22... Rdd8 {[%clk 0:00:45.6]} 23. Qe3 {[%clk 0:01:18.1]} 23... b6
{[%clk 0:00:43.7]} 24. Bh6 {[%clk 0:01:17.5]} 24... Qh8 {[%clk 0:00:41.8]} 25.
Bxf8 {[%clk 0:01:14.8]} 25... Rxf8 {[%clk 0:00:41.8]} 26. e6 {[%clk 0:01:13.6]}
26... f5 {[%clk 0:00:39.5]} 27. Rad1 {[%clk 0:01:07.1]} 27... Qf6 {[%clk
0:00:39.3]} 28. Rd7 {[%clk 0:01:03.6]} 28... g5 {[%clk 0:00:38.2]} 29. Re1
{[%clk 0:00:51.4]} 29... f4 {[%clk 0:00:34.5]} 30. Qf3 {[%clk 0:00:49.4]} 1-0

[Event "*** Titled Tuesday Blitz"]
[Site "Chess.com"]
[Date "2020.11.03"]
[Round "5"]
[White "SHIVACalypso"]
[Black "kingofthenil"]
[Result "0-1"]
[WhiteElo "2327"]
[BlackElo "2489"]
[TimeControl "180+1"]
[EndTime "10:57:38 PST"]
[Termination "kingofthenil won by resignation"]

1. Nf3 {[%clk 0:03:00.9]} 1... Nf6 {[%clk 0:02:59.2]} 2. c4 {[%clk 0:02:56.9]}
2... a6 {[%clk 0:02:58]} 3. g3 {[%clk 0:02:53.5]} 3... b6 {[%clk 0:02:58.9]} 4.
Bg2 {[%clk 0:02:52.9]} 4... c6 {[%clk 0:02:59.6]} 5. O-O {[%clk 0:02:53.2]} 5...
d6 {[%clk 0:03:00.5]} 6. d4 {[%clk 0:02:51.2]} 6... e6 {[%clk 0:03:00.2]} 7. Nc3
{[%clk 0:02:50.8]} 7... g6 {[%clk 0:02:59.5]} 8. d5 {[%clk 0:02:48.6]} 8... cxd5
{[%clk 0:02:58.9]} 9. cxd5 {[%clk 0:02:49.5]} 9... e5 {[%clk 0:02:59.8]} 10. e4
{[%clk 0:02:40]} 10... Bg7 {[%clk 0:02:58.1]} 11. h3 {[%clk 0:02:39.1]} 11...
O-O {[%clk 0:02:59]} 12. Be3 {[%clk 0:02:39]} 12... b5 {[%clk 0:02:59.2]} 13.
Rc1 {[%clk 0:02:36.7]} 13... b4 {[%clk 0:02:57.5]} 14. Na4 {[%clk 0:02:35.1]}
14... Nxe4 {[%clk 0:02:58.4]} 15. Nb6 {[%clk 0:02:12.8]} 15... Bb7 {[%clk
0:02:57]} 16. Nxa8 {[%clk 0:02:10.9]} 16... Bxa8 {[%clk 0:02:57.9]} 17. Nxe5
{[%clk 0:02:03.9]} 17... Nxg3 {[%clk 0:02:42.5]} 18. fxg3 {[%clk 0:01:23]} 18...
Bxe5 {[%clk 0:02:42.4]} 19. Bd4 {[%clk 0:01:17.5]} 19... Bxg3 {[%clk 0:02:41.3]}
20. Qf3 {[%clk 0:01:13.3]} 20... Be5 {[%clk 0:02:34.5]} 21. Bxe5 {[%clk
0:01:08]} 21... dxe5 {[%clk 0:02:35.4]} 22. Qf6 {[%clk 0:01:08.2]} 22... Nd7
{[%clk 0:02:28.8]} 23. Qxd8 {[%clk 0:01:02.4]} 23... Rxd8 {[%clk 0:02:29.7]} 24.
Rc7 {[%clk 0:01:01.8]} 24... f5 {[%clk 0:02:30.6]} 25. d6 {[%clk 0:00:56.3]}
25... Bxg2 {[%clk 0:02:27.3]} 26. Kxg2 {[%clk 0:00:57.2]} 26... Kf7 {[%clk
0:02:24.7]} 27. Ra7 {[%clk 0:00:54.2]} 27... Ke6 {[%clk 0:02:22.4]} 28. Rxa6
{[%clk 0:00:54.6]} 28... Rc8 {[%clk 0:02:23.1]} 29. Rf2 {[%clk 0:00:53.9]} 29...
e4 {[%clk 0:02:10.3]} 30. Ra4 {[%clk 0:00:53.6]} 30... Nc5 {[%clk 0:02:05.3]}
31. Ra5 {[%clk 0:00:48.2]} 31... Kxd6 {[%clk 0:02:01.8]} 32. Rd2+ {[%clk
0:00:47.4]} 32... Ke6 {[%clk 0:01:58.7]} 33. Rc2 {[%clk 0:00:45.2]} 33... Kd6
{[%clk 0:01:58.7]} 34. Ra6+ {[%clk 0:00:44.4]} 34... Kd5 {[%clk 0:01:54.5]} 35.
Ra7 {[%clk 0:00:44.5]} 35... f4 {[%clk 0:01:48.4]} 36. Rxh7 {[%clk 0:00:42.8]}
36... f3+ {[%clk 0:01:49.3]} 37. Kg3 {[%clk 0:00:40.8]} 37... Kd4 {[%clk
0:01:46.6]} 38. Rd7+ {[%clk 0:00:39]} 38... Nxd7 {[%clk 0:01:28.2]} 39. Rxc8
{[%clk 0:00:39.9]} 39... Ke3 {[%clk 0:01:29.1]} 40. Rc1 {[%clk 0:00:35.5]} 40...
Kd2 {[%clk 0:01:09.3]} 41. Rc4 {[%clk 0:00:35.2]} 41... e3 {[%clk 0:01:09.8]}
42. Kxf3 {[%clk 0:00:34.6]} 42... Ne5+ {[%clk 0:01:09.9]} 0-1

[Event "*** Titled Tuesday Blitz"]
[Site "Chess.com"]
[Date "2020.11.03"]
[Round "5"]
[White "Qvalda"]
[Black "nocnypako"]
[Result "0-1"]
[WhiteElo "2403"]
[BlackElo "2578"]
[TimeControl "180+1"]
[EndTime "10:57:54 PST"]
[Termination "nocnypako won by resignation"]

1. e4 {[%clk 0:02:43]} 1... c5 {[%clk 0:02:58.7]} 2. c3 {[%clk 0:02:38.6]} 2...
d5 {[%clk 0:02:57.4]} 3. exd5 {[%clk 0:02:39.5]} 3... Qxd5 {[%clk 0:02:57.7]} 4.
d4 {[%clk 0:02:39.7]} 4... g6 {[%clk 0:02:57]} 5. Nf3 {[%clk 0:02:39.1]} 5...
Bg7 {[%clk 0:02:57.6]} 6. Na3 {[%clk 0:02:37.4]} 6... cxd4 {[%clk 0:02:56.8]} 7.
Bc4 {[%clk 0:02:37]} 7... Qe4+ {[%clk 0:02:55.4]} 8. Be3 {[%clk 0:02:37.1]} 8...
Nh6 {[%clk 0:02:55.2]} 9. cxd4 {[%clk 0:02:32.6]} 9... O-O {[%clk 0:02:53.9]}
10. O-O {[%clk 0:02:31]} 10... Nf5 {[%clk 0:02:52.8]} 11. Re1 {[%clk 0:02:29.2]}
11... Nxe3 {[%clk 0:02:47.5]} 12. Rxe3 {[%clk 0:02:29.8]} 12... Qg4 {[%clk
0:02:46.9]} 13. Rxe7 {[%clk 0:02:26.8]} 13... Nc6 {[%clk 0:02:45.6]} 14. h3
{[%clk 0:02:14]} 14... Qf4 {[%clk 0:02:44.8]} 15. Re1 {[%clk 0:01:52.6]} 15...
Nxd4 {[%clk 0:02:44.2]} 16. Nxd4 {[%clk 0:01:46.6]} 16... Bxd4 {[%clk
0:02:44.8]} 17. Qc2 {[%clk 0:01:40.7]} 17... Bf5 {[%clk 0:02:39.6]} 18. Qe2
{[%clk 0:01:09.4]} 18... Qg3 {[%clk 0:02:32.4]} 19. Nb5 {[%clk 0:00:44.4]} 19...
Bxh3 {[%clk 0:02:26.1]} 20. Qf3 {[%clk 0:00:44.4]} 20... Qxf3 {[%clk 0:02:15.5]}
21. gxf3 {[%clk 0:00:45.3]} 21... Bxb2 {[%clk 0:02:10.4]} 22. Rab1 {[%clk
0:00:44.9]} 22... Bf6 {[%clk 0:02:09.7]} 23. Nd6 {[%clk 0:00:43.3]} 23... b6
{[%clk 0:02:07.6]} 24. a4 {[%clk 0:00:31.8]} 24... Rad8 {[%clk 0:02:07.1]} 25.
Ne4 {[%clk 0:00:29]} 25... Kg7 {[%clk 0:01:59.2]} 26. a5 {[%clk 0:00:28.3]}
26... Rd4 {[%clk 0:01:46.2]} 27. Nxf6 {[%clk 0:00:07]} 27... Kxf6 {[%clk
0:01:40.5]} 28. Re4 {[%clk 0:00:04.5]} 28... Rxe4 {[%clk 0:01:39.8]} 29. fxe4
{[%clk 0:00:05.4]} 29... bxa5 {[%clk 0:01:39.8]} 30. Rb5 {[%clk 0:00:04.3]}
30... Be6 {[%clk 0:01:39.8]} 31. Bxe6 {[%clk 0:00:02.5]} 31... Kxe6 {[%clk
0:01:40.7]} 32. Rxa5 {[%clk 0:00:03.3]} 32... Ra8 {[%clk 0:01:40.6]} 33. Ra6+
{[%clk 0:00:03.5]} 33... Ke5 {[%clk 0:01:40.1]} 34. f3 {[%clk 0:00:04.1]} 34...
f5 {[%clk 0:01:31.7]} 35. exf5 {[%clk 0:00:02.4]} 35... gxf5 {[%clk 0:01:32.4]}
36. Kf2 {[%clk 0:00:03.3]} 36... f4 {[%clk 0:01:32.2]} 37. Ra5+ {[%clk
0:00:02.9]} 37... Kd4 {[%clk 0:01:30.5]} 38. Rh5 {[%clk 0:00:02.6]} 38... a5
{[%clk 0:01:28.8]} 39. Rxh7 {[%clk 0:00:02.4]} 39... a4 {[%clk 0:01:29.2]} 40.
Rh1 {[%clk 0:00:02.3]} 40... a3 {[%clk 0:01:29.4]} 41. Ra1 {[%clk 0:00:03.2]}
41... Kc3 {[%clk 0:01:27.6]} 42. Ke2 {[%clk 0:00:04.1]} 42... a2 {[%clk
0:01:27.5]} 43. Kd1 {[%clk 0:00:03]} 43... Kb2 {[%clk 0:01:26.4]} 0-1

[Event "*** Titled Tuesday Blitz"]
[Site "Chess.com"]
[Date "2020.11.03"]
[Round "5"]
[White "cstevens1"]
[Black "LiemLe"]
[Result "1-0"]
[WhiteElo "2689"]
[BlackElo "2985"]
[TimeControl "180+1"]
[EndTime "10:57:57 PST"]
[Termination "cstevens1 won by checkmate"]

1. Nf3 {[%clk 0:03:00.9]} 1... d5 {[%clk 0:02:57.4]} 2. g3 {[%clk 0:03:01.8]}
2... c5 {[%clk 0:02:55.9]} 3. Bg2 {[%clk 0:03:02.7]} 3... Nc6 {[%clk 0:02:56.3]}
4. O-O {[%clk 0:03:03.1]} 4... Nf6 {[%clk 0:02:55.1]} 5. d3 {[%clk 0:03:02.5]}
5... e6 {[%clk 0:02:55.3]} 6. Nbd2 {[%clk 0:03:01.8]} 6... Be7 {[%clk
0:02:55.9]} 7. e4 {[%clk 0:03:01.9]} 7... O-O {[%clk 0:02:55.7]} 8. Re1 {[%clk
0:03:01.8]} 8... Qc7 {[%clk 0:02:55.6]} 9. e5 {[%clk 0:02:53]} 9... Nd7 {[%clk
0:02:55.4]} 10. Qe2 {[%clk 0:02:53.9]} 10... b5 {[%clk 0:02:55.5]} 11. Nf1
{[%clk 0:02:52.9]} 11... b4 {[%clk 0:02:52.6]} 12. h4 {[%clk 0:02:52]} 12... a5
{[%clk 0:02:52.9]} 13. h5 {[%clk 0:02:48.8]} 13... h6 {[%clk 0:02:53]} 14. N1h2
{[%clk 0:02:47.3]} 14... Re8 {[%clk 0:02:37.1]} 15. Ng4 {[%clk 0:02:40.4]} 15...
Bf8 {[%clk 0:02:37.2]} 16. Bf4 {[%clk 0:02:38.1]} 16... a4 {[%clk 0:02:29.5]}
17. Qd2 {[%clk 0:02:35.2]} 17... Kh7 {[%clk 0:02:28.9]} 18. a3 {[%clk
0:02:13.9]} 18... bxa3 {[%clk 0:02:28.5]} 19. bxa3 {[%clk 0:02:09.5]} 19... Rb8
{[%clk 0:02:26.2]} 20. Bf1 {[%clk 0:01:47.6]} 20... d4 {[%clk 0:02:16.1]} 21.
Bg2 {[%clk 0:01:31.6]} 21... Bb7 {[%clk 0:02:15.9]} 22. Qc1 {[%clk 0:01:23.7]}
22... Qc8 {[%clk 0:01:59.7]} 23. Nd2 {[%clk 0:01:21.2]} 23... Ne7 {[%clk
0:01:59.8]} 24. Ne4 {[%clk 0:01:20.5]} 24... Nd5 {[%clk 0:01:53.5]} 25. Rb1
{[%clk 0:01:06.5]} 25... Ba8 {[%clk 0:01:48.8]} 26. Qd2 {[%clk 0:01:02.8]} 26...
Qc7 {[%clk 0:01:43.5]} 27. Nd6 {[%clk 0:00:58.4]} 27... Bxd6 {[%clk 0:01:37.2]}
28. exd6 {[%clk 0:00:59.3]} 28... Qa7 {[%clk 0:01:32.4]} 29. Bxh6 {[%clk
0:00:36.3]} 29... f5 {[%clk 0:01:23]} 30. Bxg7 {[%clk 0:00:34]} 30... fxg4
{[%clk 0:01:03.8]} 31. Be4+ {[%clk 0:00:11.5]} 31... Kxg7 {[%clk 0:00:54.4]} 32.
Qg5+ {[%clk 0:00:11.5]} 32... Kf8 {[%clk 0:00:55.1]} 33. Qh6+ {[%clk 0:00:11]}
33... Kg8 {[%clk 0:00:55.6]} 34. Bh7+ {[%clk 0:00:05.4]} 34... Kh8 {[%clk
0:00:55.4]} 35. Bg6+ {[%clk 0:00:05.4]} 35... Kg8 {[%clk 0:00:56]} 36. Qh7+
{[%clk 0:00:05.5]} 36... Kf8 {[%clk 0:00:56.9]} 37. Qf7# {[%clk 0:00:05.6]} 1-0

[Event "*** Titled Tuesday Blitz"]
[Site "Chess.com"]
[Date "2020.11.03"]
[Round "5"]
[White "WildTricks"]
[Black "albi1999"]
[Result "0-1"]
[WhiteElo "2399"]
[BlackElo "2575"]
[TimeControl "180+1"]
[EndTime "10:58:08 PST"]
[Termination "albi1999 won on time"]

1. Nf3 {[%clk 0:03:00.9]} 1... d5 {[%clk 0:02:57.2]} 2. g3 {[%clk 0:03:00.9]}
2... Bg4 {[%clk 0:02:54.4]} 3. Bg2 {[%clk 0:02:53.3]} 3... Nd7 {[%clk
0:02:54.8]} 4. c4 {[%clk 0:02:53.1]} 4... e6 {[%clk 0:02:54.5]} 5. cxd5 {[%clk
0:02:49.3]} 5... exd5 {[%clk 0:02:55.4]} 6. O-O {[%clk 0:02:49.8]} 6... c6
{[%clk 0:02:54.9]} 7. d3 {[%clk 0:02:49.8]} 7... Ngf6 {[%clk 0:02:54.3]} 8. Nc3
{[%clk 0:02:48.7]} 8... Bc5 {[%clk 0:02:53.5]} 9. Qb3 {[%clk 0:02:48.3]} 9...
Bb6 {[%clk 0:02:51.4]} 10. Na4 {[%clk 0:02:48.1]} 10... O-O {[%clk 0:02:51.4]}
11. Nxb6 {[%clk 0:02:48]} 11... axb6 {[%clk 0:02:52.3]} 12. Qc2 {[%clk
0:02:47.8]} 12... Bxf3 {[%clk 0:02:50.4]} 13. Bxf3 {[%clk 0:02:47.6]} 13... d4
{[%clk 0:02:50.7]} 14. b4 {[%clk 0:02:42.8]} 14... Ne5 {[%clk 0:02:50.6]} 15.
Bg2 {[%clk 0:02:41.8]} 15... Nd5 {[%clk 0:02:50.8]} 16. Bd2 {[%clk 0:02:36.8]}
16... Re8 {[%clk 0:02:34.4]} 17. a4 {[%clk 0:02:34.9]} 17... Qd6 {[%clk
0:02:33.7]} 18. Qb2 {[%clk 0:02:30]} 18... Nf6 {[%clk 0:02:17.7]} 19. b5 {[%clk
0:01:59.9]} 19... Ned7 {[%clk 0:02:16.6]} 20. Bf4 {[%clk 0:01:55.7]} 20... Qe6
{[%clk 0:02:13.8]} 21. bxc6 {[%clk 0:01:52.9]} 21... bxc6 {[%clk 0:02:14.7]} 22.
Qxd4 {[%clk 0:01:52.8]} 22... c5 {[%clk 0:02:02.9]} 23. Qb2 {[%clk 0:01:48.7]}
23... Ra7 {[%clk 0:02:00.1]} 24. Rfe1 {[%clk 0:01:47.8]} 24... Nd5 {[%clk
0:01:59.3]} 25. Bd2 {[%clk 0:01:43.6]} 25... Rea8 {[%clk 0:01:56.3]} 26. Qb3
{[%clk 0:01:37.9]} 26... N7f6 {[%clk 0:01:41.7]} 27. Ra2 {[%clk 0:00:46.6]}
27... Ra6 {[%clk 0:01:33.1]} 28. Rb1 {[%clk 0:00:40.6]} 28... h6 {[%clk
0:01:27.4]} 29. e4 {[%clk 0:00:25.5]} 29... Ne7 {[%clk 0:01:20.9]} 30. Qxe6
{[%clk 0:00:22.9]} 30... fxe6 {[%clk 0:01:21.8]} 31. Bc3 {[%clk 0:00:20.3]}
31... Kf7 {[%clk 0:01:18.2]} 32. Rab2 {[%clk 0:00:13.4]} 32... Nd7 {[%clk
0:01:14.5]} 33. e5 {[%clk 0:00:06.9]} 33... Nd5 {[%clk 0:01:14.4]} 34. Bxd5
{[%clk 0:00:05.9]} 34... exd5 {[%clk 0:01:15.3]} 35. f4 {[%clk 0:00:02.7]} 35...
Ke6 {[%clk 0:01:13.6]} 36. g4 {[%clk 0:00:02.3]} 36... d4 {[%clk 0:01:13.5]} 37.
Bd2 {[%clk 0:00:02.6]} 37... Rxa4 {[%clk 0:01:11.9]} 38. Re1 {[%clk 0:00:03]}
38... g6 {[%clk 0:01:09.4]} 0-1

[Event "*** Titled Tuesday Blitz"]
[Site "Chess.com"]
[Date "2020.11.03"]
[Round "5"]
[White "Aleksey_Sorokin"]
[Black "WoolworthsManly"]
[Result "1-0"]
[WhiteElo "2883"]
[BlackElo "2673"]
[TimeControl "180+1"]
[EndTime "10:58:10 PST"]
[Termination "Aleksey_Sorokin won by resignation"]

1. d4 {[%clk 0:03:00.9]} 1... d5 {[%clk 0:02:59.5]} 2. c4 {[%clk 0:03:00.2]}
2... c6 {[%clk 0:02:59.9]} 3. Nf3 {[%clk 0:02:59.9]} 3... Nf6 {[%clk 0:03:00.4]}
4. e3 {[%clk 0:02:59.7]} 4... a6 {[%clk 0:03:00.3]} 5. Nc3 {[%clk 0:02:59.3]}
5... b5 {[%clk 0:03:00.6]} 6. b3 {[%clk 0:02:59.4]} 6... Bg4 {[%clk 0:03:00.2]}
7. Be2 {[%clk 0:02:59.6]} 7... Nbd7 {[%clk 0:02:56.6]} 8. h3 {[%clk 0:02:53.9]}
8... Bxf3 {[%clk 0:02:56.2]} 9. Bxf3 {[%clk 0:02:53.6]} 9... e6 {[%clk
0:02:56.8]} 10. O-O {[%clk 0:02:53.2]} 10... Bd6 {[%clk 0:02:55.4]} 11. a4
{[%clk 0:02:19]} 11... b4 {[%clk 0:02:50.3]} 12. Ne2 {[%clk 0:02:19.1]} 12... a5
{[%clk 0:02:48.5]} 13. Nf4 {[%clk 0:02:12.7]} 13... Bxf4 {[%clk 0:02:42.5]} 14.
exf4 {[%clk 0:02:12.4]} 14... O-O {[%clk 0:02:42.3]} 15. Qd3 {[%clk 0:02:06]}
15... c5 {[%clk 0:02:31.9]} 16. cxd5 {[%clk 0:02:02.3]} 16... Nxd5 {[%clk
0:02:29.2]} 17. Bd2 {[%clk 0:01:32.6]} 17... cxd4 {[%clk 0:01:59.3]} 18. Rac1
{[%clk 0:01:29]} 18... Qb6 {[%clk 0:01:54]} 19. Bxd5 {[%clk 0:00:48.3]} 19...
exd5 {[%clk 0:01:54]} 20. Rc2 {[%clk 0:00:48.6]} 20... Rac8 {[%clk 0:01:26.4]}
21. Rfc1 {[%clk 0:00:48.2]} 21... Rxc2 {[%clk 0:01:19.4]} 22. Rxc2 {[%clk
0:00:48]} 22... g6 {[%clk 0:00:59.4]} 23. Bc1 {[%clk 0:00:46.5]} 23... Nc5
{[%clk 0:00:46.5]} 24. Qxd4 {[%clk 0:00:40.7]} 24... Nxa4 {[%clk 0:00:46.7]} 25.
Qxd5 {[%clk 0:00:15.4]} 25... Nc3 {[%clk 0:00:46.4]} 26. Qf3 {[%clk 0:00:13.8]}
26... Qe6 {[%clk 0:00:42.7]} 27. Be3 {[%clk 0:00:07.3]} 27... Qxb3 {[%clk
0:00:41.8]} 28. Rd2 {[%clk 0:00:07.7]} 28... Nd5 {[%clk 0:00:37]} 29. Qxd5
{[%clk 0:00:05]} 1-0

[Event "*** Titled Tuesday Blitz"]
[Site "Chess.com"]
[Date "2020.11.03"]
[Round "5"]
[White "Zkid"]
[Black "BegmuratovKh2010"]
[Result "1-0"]
[WhiteElo "2794"]
[BlackElo "2460"]
[TimeControl "180+1"]
[EndTime "10:58:14 PST"]
[Termination "Zkid won by resignation"]

1. e4 {[%clk 0:03:00.9]} 1... e5 {[%clk 0:02:59.4]} 2. Nf3 {[%clk 0:03:00.9]}
2... Nc6 {[%clk 0:02:57.8]} 3. Bc4 {[%clk 0:03:01]} 3... Nf6 {[%clk 0:02:54.8]}
4. d3 {[%clk 0:02:57.6]} 4... Be7 {[%clk 0:02:51.1]} 5. c3 {[%clk 0:02:52.9]}
5... O-O {[%clk 0:02:50]} 6. O-O {[%clk 0:02:50.8]} 6... d6 {[%clk 0:02:47.3]}
7. a4 {[%clk 0:02:44.8]} 7... Bg4 {[%clk 0:02:42.6]} 8. h3 {[%clk 0:02:42.2]}
8... Bh5 {[%clk 0:02:36.8]} 9. Re1 {[%clk 0:02:42]} 9... a6 {[%clk 0:02:13.5]}
10. Nbd2 {[%clk 0:02:36.3]} 10... Rb8 {[%clk 0:02:08.7]} 11. b4 {[%clk
0:02:24.7]} 11... b5 {[%clk 0:01:52.6]} 12. Bb3 {[%clk 0:02:09.3]} 12... Qd7
{[%clk 0:01:33.8]} 13. Nf1 {[%clk 0:01:55.9]} 13... Rfe8 {[%clk 0:01:17.7]} 14.
Ng3 {[%clk 0:01:52.5]} 14... Bg6 {[%clk 0:01:16.9]} 15. Bb2 {[%clk 0:01:27]}
15... Bf8 {[%clk 0:01:07.1]} 16. axb5 {[%clk 0:01:18.2]} 16... axb5 {[%clk
0:01:05.6]} 17. Nh4 {[%clk 0:01:08.4]} 17... Kh8 {[%clk 0:00:59.8]} 18. Qf3
{[%clk 0:01:03.3]} 18... Ra8 {[%clk 0:00:48.2]} 19. Ngf5 {[%clk 0:00:59.3]}
19... h6 {[%clk 0:00:34.4]} 20. Nxh6 {[%clk 0:00:39.5]} 20... Rxa1 {[%clk
0:00:25.5]} 21. Rxa1 {[%clk 0:00:36.9]} 21... Bh5 {[%clk 0:00:10.9]} 22. g4
{[%clk 0:00:31]} 22... Bg6 {[%clk 0:00:10.7]} 23. Nxg6+ {[%clk 0:00:27.2]} 23...
fxg6 {[%clk 0:00:11.6]} 24. Nf7+ {[%clk 0:00:25]} 24... Kh7 {[%clk 0:00:11.3]}
25. Qg3 {[%clk 0:00:24.7]} 25... Re7 {[%clk 0:00:09.7]} 26. Qh4+ {[%clk
0:00:17.4]} 1-0

[Event "*** Titled Tuesday Blitz"]
[Site "Chess.com"]
[Date "2020.11.03"]
[Round "5"]
[White "InitiatingASC"]
[Black "Nikolaj_6"]
[Result "1-0"]
[WhiteElo "2398"]
[BlackElo "2540"]
[TimeControl "180+1"]
[EndTime "10:58:18 PST"]
[Termination "InitiatingASC won by resignation"]

1. Nf3 {[%clk 0:03:00.9]} 1... Nf6 {[%clk 0:02:59.6]} 2. b3 {[%clk 0:03:01.2]}
2... g6 {[%clk 0:02:59.3]} 3. Bb2 {[%clk 0:03:02]} 3... Bg7 {[%clk 0:02:59.6]}
4. e3 {[%clk 0:03:02.9]} 4... O-O {[%clk 0:02:59.3]} 5. c4 {[%clk 0:03:03.3]}
5... c5 {[%clk 0:02:59.5]} 6. Be2 {[%clk 0:03:03.4]} 6... Nc6 {[%clk 0:02:59.6]}
7. O-O {[%clk 0:03:03.8]} 7... a6 {[%clk 0:02:57.6]} 8. d3 {[%clk 0:03:02.8]}
8... Rb8 {[%clk 0:02:57.3]} 9. Nbd2 {[%clk 0:02:59.3]} 9... b5 {[%clk
0:02:57.3]} 10. cxb5 {[%clk 0:02:56]} 10... axb5 {[%clk 0:02:58.2]} 11. a3
{[%clk 0:02:54.7]} 11... d6 {[%clk 0:02:54.2]} 12. Qc2 {[%clk 0:02:53.4]} 12...
Bd7 {[%clk 0:02:48.4]} 13. Rfc1 {[%clk 0:02:48.5]} 13... Qb6 {[%clk 0:02:46]}
14. d4 {[%clk 0:02:45.1]} 14... cxd4 {[%clk 0:02:38]} 15. Nxd4 {[%clk
0:02:44.9]} 15... Nxd4 {[%clk 0:02:37.5]} 16. Bxd4 {[%clk 0:02:44.7]} 16... Qa5
{[%clk 0:02:33]} 17. b4 {[%clk 0:02:37.3]} 17... Qd8 {[%clk 0:02:26.4]} 18. Nb3
{[%clk 0:02:31.1]} 18... e5 {[%clk 0:02:19.8]} 19. Bb2 {[%clk 0:02:27]} 19...
Qe7 {[%clk 0:02:15.4]} 20. Na5 {[%clk 0:02:21.4]} 20... Rfc8 {[%clk 0:02:13.7]}
21. Qd1 {[%clk 0:02:18]} 21... h5 {[%clk 0:02:12.3]} 22. Rxc8+ {[%clk
0:02:17.2]} 22... Rxc8 {[%clk 0:02:11.4]} 23. Rc1 {[%clk 0:02:18.1]} 23... Rxc1
{[%clk 0:02:00.9]} 24. Qxc1 {[%clk 0:02:18.7]} 24... Ne8 {[%clk 0:01:52.9]} 25.
Bf1 {[%clk 0:01:48]} 25... Qd8 {[%clk 0:01:47.8]} 26. Qc3 {[%clk 0:01:45.3]}
26... Qb6 {[%clk 0:01:43.8]} 27. Qd3 {[%clk 0:01:42.6]} 27... Nc7 {[%clk
0:01:40.4]} 28. Qc2 {[%clk 0:01:32.6]} 28... d5 {[%clk 0:01:27.7]} 29. Qc5
{[%clk 0:01:30.2]} 29... Qxc5 {[%clk 0:01:27.6]} 30. bxc5 {[%clk 0:01:31.1]}
30... Bf8 {[%clk 0:01:24.2]} 31. Bxe5 {[%clk 0:01:29.9]} 31... Ne6 {[%clk
0:01:24.2]} 32. c6 {[%clk 0:01:29.5]} 32... Bc8 {[%clk 0:01:24.4]} 33. Bxb5
{[%clk 0:01:28.2]} 33... Bxa3 {[%clk 0:01:24.3]} 34. Nb7 {[%clk 0:01:24]} 34...
Be7 {[%clk 0:01:04.7]} 35. Nd6 {[%clk 0:01:18.4]} 35... Bxd6 {[%clk 0:01:01.7]}
36. Bxd6 {[%clk 0:01:19.3]} 36... f5 {[%clk 0:01:00.4]} 37. Kf1 {[%clk
0:01:17.8]} 37... Kf7 {[%clk 0:01:00.5]} 38. Ba4 {[%clk 0:01:14.1]} 38... Ng5
{[%clk 0:01:00.4]} 39. Bf4 {[%clk 0:01:11.5]} 39... Ne4 {[%clk 0:00:59.8]} 40.
f3 {[%clk 0:01:03.3]} 40... Nc3 {[%clk 0:00:54.3]} 41. Bb3 {[%clk 0:00:59.8]}
41... Ke6 {[%clk 0:00:54.1]} 42. Ke1 {[%clk 0:00:58.7]} 42... Ba6 {[%clk
0:00:34.6]} 43. Kd2 {[%clk 0:00:54.2]} 43... Ne2 {[%clk 0:00:33.2]} 44. Bb8
{[%clk 0:00:50.7]} 44... Bb5 {[%clk 0:00:20.6]} 45. c7 {[%clk 0:00:48]} 45...
Kd7 {[%clk 0:00:20.6]} 46. Bxd5 {[%clk 0:00:46.3]} 1-0